[Event "15th Avicenna Open Masters 2018"]
[Site "Avicenna"]
[Date "2018.08.19"]
[Round "4"]
[White "Guliev, Logman"]
[Black "Molaei, Mohammadamin"]
[Result "1/2-1/2"]
[ECO "B36"]
[WhiteElo "2342"]
[BlackElo "2377"]
[Annotator "NA"]
[PlyCount "98"]
[EventDate "2018.08.17"]
[EventType "swiss"]
[EventCountry "IRI"]
[SourceTitle "playchess.com"]
[Source "ChessBase"]
[SourceQuality "1"]
[TimeControl "5400+30"]

1. e4 {[%emt 0:00:00]} c5 {[%emt 0:00:00]} 2. Nf3 {[%emt 0:00:00]} g6 {[%emt 0:00:00]} 3. d4 {[%emt 0:00:00]} cxd4 {[%emt 0:00:00]} 4. Nxd4 {[%emt 0:00:00]} Nc6 {[%emt 0:00:00]} 5. c4 {[%emt 0:00:35]} Nf6 {[%emt 0:00:31]} 6. Nc3 {[%emt 0:00:22]} d6 {[%emt 0:00:02]} 7. Be2 {[%emt 0:00:47]} Nxd4 {[%emt 0:00:05]} 8. Qxd4 {[%emt 0:00:06]} Bg7 {[%emt 0:00:04]} 9. Be3 {[%emt 0:07:22]} O-O {[%emt 0:00:27]} 10. Qd2 {[%emt 0:00:09]} a5 {[%emt 0:00:04]} 11. O-O {[%emt 0:00:11]} a4 {[%emt 0:00:02]} 12. Rac1 {[%emt 0:01:59]} Qa5 {[%emt 0:02:02]} 13. f3 {[%emt 0:01:36]} Be6 {[%emt 0:01:17]} 14. Nd5 {[%emt 0:04:18]} Qxd2 {[%emt 0:01:18]} 15. Bxd2 {[%emt 0:24:16]} Nxd5 {[%emt 0:00:06]} 16. cxd5 {[%emt 0:01:00]} Bd7 {[%emt 0:00:02]} 17. Bc3 {[%emt 0:03:28]} Rfc8 {[%emt 0:07:23]} 18. Bxg7 {[%emt 0:01:20]} Kxg7 {[%emt 0:00:08]} 19. Kf2 {[%emt 0:00:08]} f5 {[%emt 0:00:36]} 20. Ke3 {[%emt 0:00:23]} Kf6 {[%emt 0:00:07]} 21. Kd4 {[%emt 0:01:04]} b6 {[%emt 0:01:30]} 22. Rc3 {[%emt 0:05:23]} a3 {[%emt 0:06:44]} 23. Rb1 {[%emt 0:04:27]} axb2 {[%emt 0:07:56]} 24. Rxc8 {[%emt 0:00:36]} Bxc8 {[%emt 0:00:24]} 25. Rxb2 {[%emt 0:00:18]} Ra4+ {[%emt 0:00:01]} 26. Ke3 {[%emt 0:00:27]} fxe4 {[%emt 0:00:15]} 27. Bb5 {[%emt 0:04:24]} Ra3+ {[%emt 0:02:52]} 28. Kxe4 {[%emt 0:00:02]} Ba6 {[%emt 0:00:08]} 29. Bxa6 {[%emt 0:08:13]} Rxa6 {[%emt 0:00:06]} 30. f4 {[%emt 0:00:03]} Ra4+ {[%emt 0:00:28]} 31. Kf3 {[%emt 0:00:06]} h5 {[%emt 0:00:04]} 32. h3 {[%emt 0:00:55]} Ra3+ {[%emt 0:01:08]} 33. Ke4 {[%emt 0:07:41]} h4 {[%emt 0:00:12]} 34. Rxb6 {[%emt 0:02:59]} Rxa2 {[%emt 0:00:24]} 35. Rb8 {[%emt 0:02:08]} Rxg2 {[%emt 0:05:31]} 36. Rh8 {[%emt 0:00:05]} Ra2 {[%emt 0:00:05]} 37. Rxh4 {[%emt 0:00:11]} Ra4+ {[%emt 0:00:01]} 38. Kd3 {[%emt 0:01:25]} Rb4 {[%emt 0:01:31]} 39. Ke3 {[%emt 0:01:45]} Ra4 {[%emt 0:19:05]} 40. Kd3 {[%emt 0:00:08]} Ra1 {[%emt 0:00:06]} 41. Rh7 {[%emt 0:01:00]} Re1 {[%emt 0:02:46]} 42. Kd4 {[%emt 0:00:44]} Rd1+ {[%emt 0:01:24]} 43. Ke4 {[%emt 0:00:03]} Rd2 {[%emt 0:00:29]} 44. h4 {[%emt 0:00:54]} Rh2 {[%emt 0:00:16]} 45. Kd4 {[%emt 0:00:09]} Rh1 {[%emt 0:03:22]} 46. Ke4 {[%emt 0:00:13]} Re1+ {[%emt 0:00:33]} 47. Kf3 {[%emt 0:00:45]} Rh1 {[%emt 0:01:58]} 48. Ke4 {[%emt 0:02:39]} Re1+ {[%emt 0:00:51]} 49. Kf3 {[%emt 0:00:07]} Rh1 {[%emt 0:00:04]} 1/2-1/2

[Event "15th Avicenna Open Masters 2018"]
[Site "Avicenna"]
[Date "2018.08.19"]
[Round "4"]
[White "Salar, Milad"]
[Black "Mousavi, Seyed Khalil"]
[Result "0-1"]
[ECO "C09"]
[WhiteElo "2247"]
[BlackElo "2458"]
[Annotator "ChessBase"]
[PlyCount "85"]
[EventDate "2018.08.17"]
[EventType "swiss"]
[EventCountry "IRI"]
[SourceTitle "playchess.com"]
[Source "ChessBase"]
[SourceQuality "1"]
[TimeControl "5400+30"]

1. e4 {[%emt 0:02:31]} e6 {[%emt 0:00:00]} 2. d4 {[%emt 0:00:05]} d5 {[%emt 0:00:00]} 3. Nd2 {[%emt 0:00:07]} c5 {[%emt 0:00:00]} 4. exd5 {[%emt 0:00:07]} exd5 {[%emt 0:00:00]} 5. Ngf3 {[%emt 0:00:09]} Nc6 {[%emt 0:00:04]} 6. Bb5 {[%emt 0:00:11]} Bd6 {[%emt 0:00:07]} 7. dxc5 {[%emt 0:00:05]} Bxc5 {[%emt 0:00:05]} 8. O-O {[%emt 0:00:09]} Nge7 {[%emt 0:00:03]} 9. Nb3 {[%emt 0:00:08]} Bd6 {[%emt 0:00:06]} 10. c3 {[%emt 0:01:06]} O-O {[%emt 0:00:07]} 11. h3 {[%emt 0:00:22]} h6 {[%emt 0:02:39]} 12. Re1 {[%emt 0:01:25]} Re8 {[%emt 0:06:11]} 13. Nbd4 {[%emt 0:05:26]} a6 {[%emt 0:04:30]} 14. Bd3 {[%emt 0:06:30]} Nxd4 {[%emt 0:05:42]} 15. Nxd4 {[%emt 0:00:36]} Bc7 {[%emt 0:00:29]} 16. Qh5 {[%emt 0:10:28]} Qd6 {[%emt 0:04:53]} 17. g3 {[%emt 0:01:31]} Qf6 {[%emt 0:08:50]} 18. Qxd5 {[%emt 0:24:28]} Bxh3 {[%emt 0:03:11]} 19. Qxb7 {[%emt 0:01:27]} Nf5 {[%emt 0:03:50]} 20. Be3 {[%emt 0:02:25]} Be5 {[%emt 0:18:46]} 21. Nxf5 {[%emt 0:03:31]} Bxf5 {[%emt 0:01:34]} 22. Bxf5 {[%emt 0:00:07]} Qxf5 {[%emt 0:00:04]} 23. Rad1 {[%emt 0:07:30]} h5 {[%emt 0:07:00]} 24. Qd7 {[%emt 0:02:15]} Re6 {[%emt 0:03:14]} 25. Bd4 {[%emt 0:06:38]} Bxd4 {[%emt 0:01:09]} 26. Qxd4 {[%emt 0:00:05]} Rf6 {[%emt 0:00:16]} 27. Rd2 {[%emt 0:00:59]} Qh3 {[%emt 0:08:07]} 28. Qe4 {[%emt 0:01:56]} Rb8 {[%emt 0:02:02]} 29. Qg2 {[%emt 0:01:34]} Qg4 {[%emt 0:00:53]} 30. Re4 {[%emt 0:01:17]} Qg5 {[%emt 0:01:38]} 31. Red4 {[%emt 0:04:52]} Re6 {[%emt 0:03:08]} 32. Qd5 {[%emt 0:02:25]} Re5 {[%emt 0:01:49]} 33. Qd6 {[%emt 0:01:01]} Rbe8 {[%emt 0:01:13]} 34. Rd1 {[%emt 0:02:35]} Re2 {[%emt 0:01:36]} 35. R4d2 {[%emt 0:00:51]} R2e6 {[%emt 0:00:33]} 36. Qf4 {[%emt 0:02:43]} Qb5 {[%emt 0:04:45]} 37. c4 {[%emt 0:02:44]} Qb7 {[%emt 0:00:35]} 38. Kh2 {[%emt 0:01:21]} Rf6 {[%emt 0:02:01]} 39. Qg5 {[%emt 0:03:36]} h4 {[%emt 0:02:12]} 40. gxh4 {[%emt 0:01:53]} Qe4 {[%emt 0:02:27]} 41. Rg1 Rg6 {[%emt 0:00:14]} 42. Qh5 {[%emt 0:01:15]} Qf4+ {[%emt 0:00:07]} 43. Kh1 0-1

[Event "15th Avicenna Open Masters 2018"]
[Site "Avicenna"]
[Date "2018.08.20"]
[Round "5"]
[White "Tahbaz, Arash"]
[Black "Guliev, Logman"]
[Result "1-0"]
[ECO "B56"]
[WhiteElo "2449"]
[BlackElo "2342"]
[Annotator "NA"]
[PlyCount "90"]
[EventDate "2018.08.17"]
[EventType "swiss"]
[EventCountry "IRI"]
[SourceTitle "playchess.com"]
[Source "ChessBase"]
[SourceQuality "1"]
[TimeControl "5400+30"]

1. e4 {[%emt 0:05:31]} c5 {[%emt 0:02:42]} 2. Nc3 {[%emt 0:00:27]} Nc6 {[%emt 0:00:09]} 3. Nge2 {[%emt 0:00:04]} d6 {[%emt 0:00:32]} 4. d4 {[%emt 0:00:02]} cxd4 {[%emt 0:00:07]} 5. Nxd4 {[%emt 0:00:03]} Nf6 {[%emt 0:00:06]} 6. f3 {[%emt 0:00:02]} e5 {[%emt 0:00:24]} 7. Nb3 {[%emt 0:00:02]} Be7 {[%emt 0:00:19]} 8. Be3 {[%emt 0:00:02]} O-O {[%emt 0:00:16]} 9. Qd2 {[%emt 0:00:01]} Be6 {[%emt 0:00:12]} 10. Nd5 {[%emt 0:00:02]} Bxd5 {[%emt 0:02:46]} 11. exd5 {[%emt 0:00:02]} Nb8 {[%emt 0:00:11]} 12. Be2 {[%emt 0:00:01]} Nbd7 {[%emt 0:00:34]} 13. Na5 {[%emt 0:00:08]} Qc7 {[%emt 0:01:49]} 14. b4 {[%emt 0:00:02]} Nh5 {[%emt 0:03:39]} 15. O-O {[%emt 0:03:48]} Nf4 {[%emt 0:03:57]} 16. c4 {[%emt 0:02:46]} Nxe2+ {[%emt 0:05:34]} 17. Qxe2 {[%emt 0:00:02]} f5 {[%emt 0:00:47]} 18. Rfd1 {[%emt 0:00:29]} Rae8 {[%emt 0:04:49]} 19. Rac1 {[%emt 0:10:41]} f4 {[%emt 0:20:40]} 20. Bf2 {[%emt 0:04:08]} Bg5 {[%emt 0:00:59]} 21. c5 {[%emt 0:02:21]} e4 {[%emt 0:00:12]} 22. Bd4 {[%emt 0:11:17]} exf3 {[%emt 0:06:52]} 23. Qxf3 {[%emt 0:00:10]} h6 {[%emt 0:17:25]} 24. cxd6 {[%emt 0:02:14]} Qxd6 {[%emt 0:00:51]} 25. Nxb7 {[%emt 0:00:31]} Qxb4 {[%emt 0:01:22]} 26. d6 {[%emt 0:05:28]} Rf7 {[%emt 0:00:19]} 27. Qb3 {[%emt 0:11:55]} Qxb3 {[%emt 0:00:35]} 28. axb3 {[%emt 0:00:01]} f3 {[%emt 0:00:09]} 29. Rc7 {[%emt 0:00:16]} fxg2 {[%emt 0:00:19]} 30. Nc5 {[%emt 0:03:18]} Nxc5 {[%emt 0:04:37]} 31. Bxc5 {[%emt 0:00:28]} Rd8 {[%emt 0:05:40]} 32. Kxg2 {[%emt 0:12:36]} Bf4 {[%emt 0:01:38]} 33. Re7 {[%emt 0:05:52]} Rd7 {[%emt 0:04:15]} 34. Rxd7 {[%emt 0:01:19]} Rxd7 {[%emt 0:00:02]} 35. Kf3 {[%emt 0:00:25]} Bxh2 {[%emt 0:00:22]} 36. Ke4 {[%emt 0:01:03]} Kf7 {[%emt 0:02:43]} 37. Kd5 {[%emt 0:00:11]} Bf4 {[%emt 0:02:46]} 38. Rf1 {[%emt 0:02:35]} g5 {[%emt 0:00:01]} 39. Kc6 {[%emt 0:00:10]} Ke8 {[%emt 0:01:15]} 40. Re1+ {[%emt 0:00:02]} Kd8 {[%emt 0:00:04]} 41. Re6 {[%emt 0:00:08]} Rf7 {[%emt 0:03:42]} 42. Rxh6 {[%emt 0:00:46]} Be5 {[%emt 0:00:15]} 43. Rg6 {[%emt 0:01:41]} Bg7 {[%emt 0:02:10]} 44. Bd4 {[%emt 0:01:10]} Bf8 {[%emt 0:00:12]} 45. Rf6 {[%emt 0:00:09]} Ke8 1-0

[Event "15th Avicenna Open Masters 2018"]
[Site "Avicenna"]
[Date "2018.08.20"]
[Round "5"]
[White "Asgarizadeh, Ahmad"]
[Black "Morchiashvili, Bachana"]
[Result "1-0"]
[ECO "B84"]
[WhiteElo "2416"]
[BlackElo "2382"]
[Annotator "NA"]
[PlyCount "105"]
[EventDate "2018.08.17"]
[EventType "swiss"]
[EventCountry "IRI"]
[SourceTitle "playchess.com"]
[Source "ChessBase"]
[SourceQuality "1"]
[TimeControl "5400+30"]

1. e4 {[%emt 0:02:41]} c5 {[%emt 0:00:00]} 2. Nf3 {[%emt 0:01:30]} d6 {[%emt 0:00:17]} 3. d4 {[%emt 0:00:11]} cxd4 {[%emt 0:00:03]} 4. Nxd4 {[%emt 0:00:08]} Nf6 {[%emt 0:00:03]} 5. Nc3 {[%emt 0:00:07]} a6 {[%emt 0:00:04]} 6. Be2 {[%emt 0:00:53]} e6 {[%emt 0:00:11]} 7. O-O {[%emt 0:00:28]} Be7 {[%emt 0:00:04]} 8. f4 {[%emt 0:01:00]} O-O {[%emt 0:00:11]} 9. Be3 {[%emt 0:00:34]} Nc6 {[%emt 0:00:12]} 10. Qe1 {[%emt 0:01:35]} Nxd4 {[%emt 0:00:38]} 11. Bxd4 {[%emt 0:00:06]} b5 {[%emt 0:00:07]} 12. a3 {[%emt 0:00:37]} Nd7 {[%emt 0:02:51]} 13. Rd1 {[%emt 0:06:18]} Bh4 {[%emt 0:06:58]} 14. Bf2 {[%emt 0:08:26]} Be7 {[%emt 0:01:00]} 15. Bd4 {[%emt 0:03:01]} Bh4 {[%emt 0:00:41]} 16. Qd2 {[%emt 0:00:02]} Bb7 $11 {[%emt 0:01:32]} 17. Be3 {[%emt 0:11:43]} Be7 {[%emt 0:01:59]} 18. e5 {[%emt 0:00:35]} d5 {[%emt 0:00:31]} 19. Bd4 {[%emt 0:03:41]} Qc7 {[%emt 0:06:06]} 20. Qe3 {[%emt 0:00:16]} Nc5 {[%emt 0:17:22]} 21. Bd3 {[%emt 0:04:52]} g6 {[%emt 0:05:00]} 22. f5 {[%emt 0:03:51]} exf5 {[%emt 0:07:28]} 23. Bxf5 {[%emt 0:00:19]} Ne6 {[%emt 0:00:19]} 24. Bxe6 {[%emt 0:01:50]} fxe6 {[%emt 0:00:04]} 25. Qh3 {[%emt 0:01:55]} Qd7 {[%emt 0:03:52]} 26. Ne2 {[%emt 0:02:29]} Rxf1+ {[%emt 0:00:32]} 27. Rxf1 {[%emt 0:00:03]} Rf8 {[%emt 0:00:07]} 28. Rxf8+ {[%emt 0:09:14]} Bxf8 {[%emt 0:00:06]} 29. Nf4 {[%emt 0:00:09]} Bc8 {[%emt 0:01:11]} 30. Qc3 {[%emt 0:03:07]} Qb7 {[%emt 0:02:11]} 31. Nd3 {[%emt 0:01:00]} Bd7 {[%emt 0:00:45]} 32. Bc5 {[%emt 0:03:23]} Bh6 {[%emt 0:07:33]} 33. Qd4 {[%emt 0:00:13]} Qc8 {[%emt 0:01:10]} 34. Qh4 {[%emt 0:03:06]} Bg7 {[%emt 0:05:58]} 35. Qe7 {[%emt 0:01:50]} Bh6 {[%emt 0:07:44]} 36. c3 {[%emt 0:03:25]} a5 {[%emt 0:01:54]} 37. Qh4 {[%emt 0:08:20]} Bg7 {[%emt 0:03:07]} 38. Bd6 {[%emt 0:01:22]} Be8 {[%emt 0:01:28]} 39. Qe7 {[%emt 0:01:02]} Bh6 {[%emt 0:01:30]} 40. Nc5 {[%emt 0:01:22]} Bf7 {[%emt 0:01:33]} 41. Kf2 {[%emt 0:01:03]} Bg7 {[%emt 0:02:12]} 42. Nb7 {[%emt 0:02:56]} Be8 {[%emt 0:04:45]} 43. Nd8 {[%emt 0:04:45]} Bd7 {[%emt 0:00:02]} 44. Qf7+ {[%emt 0:00:08]} Kh8 {[%emt 0:00:01]} 45. Bf8 {[%emt 0:00:17]} Bxe5 {[%emt 0:00:31]} 46. Be7 {[%emt 0:00:06]} Bg7 {[%emt 0:02:01]} 47. Bf6 {[%emt 0:00:27]} Qc5+ {[%emt 0:00:08]} 48. Kf3 {[%emt 0:00:12]} Bxf6 {[%emt 0:00:33]} 49. Qxf6+ {[%emt 0:00:30]} Kg8 {[%emt 0:00:30]} 50. Qf7+ {[%emt 0:00:30]} Kh8 51. Qxd7 {[%emt 0:00:00]} Qg1 {[%emt 0:01:00]} 52. Qe8+ {[%emt 0:00:00]} Kg7 {[%emt 0:00:01]} 53. Qe7+ {[%emt 0:00:00]} 1-0

[Event "15th Avicenna Open Masters 2018"]
[Site "Avicenna"]
[Date "2018.08.20"]
[Round "5"]
[White "Molaei, Mohammadamin"]
[Black "Hosseinipour, Mehdi"]
[Result "1-0"]
[ECO "E15"]
[WhiteElo "2377"]
[BlackElo "2327"]
[Annotator "NA"]
[PlyCount "155"]
[EventDate "2018.08.17"]
[EventType "swiss"]
[EventCountry "IRI"]
[SourceTitle "playchess.com"]
[Source "ChessBase"]
[SourceQuality "1"]
[TimeControl "5400+30"]

1. d4 {[%emt 0:00:00]} Nf6 {[%emt 0:04:14]} 2. c4 {[%emt 0:00:00]} e6 {[%emt 0:00:12]} 3. Nf3 {[%emt 0:00:00]} b6 {[%emt 0:00:13]} 4. g3 {[%emt 0:00:00]} Ba6 {[%emt 0:00:08]} 5. b3 {[%emt 0:00:00]} Bb4+ {[%emt 0:00:09]} 6. Bd2 {[%emt 0:00:00]} Be7 {[%emt 0:00:09]} 7. Nc3 {[%emt 0:00:00]} d5 {[%emt 0:00:13]} 8. cxd5 {[%emt 0:00:00]} exd5 {[%emt 0:00:05]} 9. Bg2 {[%emt 0:00:00]} O-O {[%emt 0:00:15]} 10. O-O {[%emt 0:00:00]} Bb7 {[%emt 0:00:14]} 11. Rc1 {[%emt 0:01:18]} Nbd7 {[%emt 0:01:33]} 12. Bf4 {[%emt 0:01:10]} c6 $11 {[%emt 0:01:45] LiveBook: 26 Games} 13. Qd3 {[%emt 0:03:20]} Re8 {[%emt 0:02:15]} 14. Rfd1 {[%emt 0:03:29]} Bb4 {[%emt 0:09:51]} 15. Ne5 {[%emt 0:04:29]} Nxe5 {[%emt 0:04:59]} 16. dxe5 {[%emt 0:08:13]} Ng4 {[%emt 0:14:11]} 17. e4 {[%emt 0:04:23]} Bc5 {[%emt 0:07:55]} 18. Rc2 {[%emt 0:07:08]} d4 {[%emt 0:13:10]} 19. Na4 {[%emt 0:04:10]} Bf8 {[%emt 0:00:12]} 20. Qxd4 {[%emt 0:02:26]} Qxd4 {[%emt 0:02:48]} 21. Rxd4 {[%emt 0:00:02]} c5 {[%emt 0:00:08]} 22. Rd1 {[%emt 0:00:50]} Nxe5 {[%emt 0:00:18]} 23. Nc3 {[%emt 0:00:07]} f6 {[%emt 0:08:27]} 24. Rcd2 {[%emt 0:03:44]} Kf7 {[%emt 0:01:52]} 25. Nb5 {[%emt 0:02:31]} Re7 {[%emt 0:02:04]} 26. Nd6+ {[%emt 0:04:12]} Kg8 {[%emt 0:00:14]} 27. Bxe5 {[%emt 0:00:13]} fxe5 {[%emt 0:00:18]} 28. Bf1 {[%emt 0:00:19]} Bc8 {[%emt 0:01:28]} 29. Bc4+ {[%emt 0:00:56]} Be6 {[%emt 0:00:11]} 30. Nf5 {[%emt 0:00:12]} Ree8 {[%emt 0:00:12]} 31. Bxe6+ {[%emt 0:00:41]} Rxe6 {[%emt 0:00:02]} 32. Rd7 {[%emt 0:00:01]} Rf6 {[%emt 0:03:33]} 33. R1d5 {[%emt 0:00:30]} Rf7 {[%emt 0:01:39]} 34. Kf1 {[%emt 0:02:41]} b5 {[%emt 0:03:43]} 35. Rxf7 {[%emt 0:02:43]} Kxf7 {[%emt 0:00:01]} 36. Rd7+ {[%emt 0:00:13]} Ke6 {[%emt 0:01:28]} 37. Rb7 {[%emt 0:01:19]} c4 {[%emt 0:02:24]} 38. bxc4 {[%emt 0:01:59]} bxc4 {[%emt 0:00:01]} 39. Rc7 {[%emt 0:00:01]} Rb8 {[%emt 0:01:12]} 40. Rxc4 {[%emt 0:00:29]} Rb2 {[%emt 0:01:57]} 41. Rc8 {[%emt 0:03:17]} Kf7 {[%emt 0:03:52]} 42. Rc7+ {[%emt 0:02:09]} Kf6 {[%emt 0:00:01]} 43. a4 {[%emt 0:07:01]} a5 {[%emt 0:00:18]} 44. Ne3 {[%emt 0:01:07]} Ra2 {[%emt 0:00:51]} 45. Nd5+ {[%emt 0:02:33]} Ke6 {[%emt 0:00:01]} 46. Rc6+ {[%emt 0:00:43]} Kd7 {[%emt 0:03:13]} 47. Rc4 {[%emt 0:02:50]} Ke6 {[%emt 0:02:49]} 48. h4 {[%emt 0:03:51]} Bd6 49. Kg2 {[%emt 0:01:58]} Bf8 {[%emt 0:02:14]} 50. g4 {[%emt 0:03:24]} Bd6 {[%emt 0:00:47]} 51. Kg3 {[%emt 0:00:50]} Ra3+ {[%emt 0:00:11]} 52. f3 {[%emt 0:01:08]} Ra2 {[%emt 0:00:22]} 53. h5 {[%emt 0:02:35]} Ra1 {[%emt 0:01:22]} 54. Nb6 {[%emt 0:03:04]} Bf8 {[%emt 0:02:44]} 55. Rc6+ {[%emt 0:00:14]} Kf7 {[%emt 0:00:18]} 56. Nc4 {[%emt 0:01:36]} Rxa4 {[%emt 0:00:02]} 57. Nxe5+ {[%emt 0:00:05]} Ke8 {[%emt 0:01:31]} 58. Rc8+ {[%emt 0:00:36]} Ke7 {[%emt 0:00:02]} 59. Ra8 {[%emt 0:00:06]} Ra1 {[%emt 0:01:21]} 60. Rxa5 {[%emt 0:00:27]} Rg1+ {[%emt 0:01:08]} 61. Kf2 {[%emt 0:00:40]} Rb1 {[%emt 0:00:02]} 62. Ra6 {[%emt 0:01:13]} Rb5 {[%emt 0:00:40]} 63. Nd3 {[%emt 0:00:40]} Kf7 {[%emt 0:00:15]} 64. Ke3 {[%emt 0:00:16]} Be7 {[%emt 0:00:14]} 65. e5 {[%emt 0:00:18]} Rb3 {[%emt 0:00:41]} 66. Ke4 {[%emt 0:00:28]} Rc3 {[%emt 0:00:18]} 67. f4 {[%emt 0:01:00]} h6 {[%emt 0:00:25]} 68. Ra7 {[%emt 0:01:22]} Rb3 {[%emt 0:00:36]} 69. g5 {[%emt 0:04:51]} hxg5 {[%emt 0:00:50]} 70. fxg5 {[%emt 0:00:05]} Rb1 {[%emt 0:00:50]} 71. Kf5 {[%emt 0:01:02]} Rf1+ {[%emt 0:00:40]} 72. Nf4 {[%emt 0:00:02]} Ke8 {[%emt 0:00:33]} 73. g6 {[%emt 0:01:09]} Bc5 {[%emt 0:00:40]} 74. h6 {[%emt 0:02:28]} gxh6 {[%emt 0:00:45]} 75. g7 {[%emt 0:00:06]} Rg1 {[%emt 0:00:16]} 76. Ra8+ {[%emt 0:00:55]} Kf7 {[%emt 0:00:12]} 77. e6+ {[%emt 0:00:01]} Kxg7 {[%emt 0:00:14]} 78. Nh5+ {[%emt 0:00:02]} 1-0

[Event "15th Avicenna Open Masters 2018"]
[Site "Avicenna"]
[Date "2018.08.20"]
[Round "5"]
[White "Daghli, Arash"]
[Black "Khodashenas, Mersad"]
[Result "1/2-1/2"]
[ECO "A04"]
[WhiteElo "2362"]
[BlackElo "2440"]
[Annotator "NA"]
[PlyCount "46"]
[EventDate "2018.08.17"]
[EventType "swiss"]
[EventCountry "IRI"]
[SourceTitle "playchess.com"]
[Source "ChessBase"]
[SourceQuality "1"]
[TimeControl "5400+30"]

1. Nf3 {[%emt 0:00:00]} c5 {[%emt 0:02:06]} 2. c4 {[%emt 0:00:21]} Nf6 {[%emt 0:00:26]} 3. g3 {[%emt 0:04:45]} Nc6 {[%emt 0:00:24]} 4. Bg2 {[%emt 0:00:13]} d5 {[%emt 0:00:14]} 5. cxd5 {[%emt 0:02:23]} Nxd5 {[%emt 0:00:02]} 6. Nc3 {[%emt 0:00:26]} Nc7 {[%emt 0:00:08]} 7. O-O {[%emt 0:01:37]} e5 {[%emt 0:00:50]} 8. d3 {[%emt 0:01:28]} Be7 {[%emt 0:00:57]} 9. Be3 {[%emt 0:01:29]} O-O {[%emt 0:01:02]} 10. Rc1 {[%emt 0:03:26]} b6 {[%emt 0:01:07]} 11. a3 {[%emt 0:05:16]} Bd7 {[%emt 0:04:20]} 12. Nd2 {[%emt 0:04:39]} Re8 {[%emt 0:06:08]} 13. Nc4 {[%emt 0:07:35]} Bf8 {[%emt 0:06:55]} 14. Ne4 {[%emt 0:09:35]} Rb8 {[%emt 0:07:09]} 15. Bg5 {[%emt 0:10:43]} f6 {[%emt 0:03:40]} 16. Bd2 {[%emt 0:02:23]} Nd4 {[%emt 0:00:55]} 17. Re1 {[%emt 0:09:50]} Bg4 {[%emt 0:09:56]} 18. h3 {[%emt 0:02:30]} Be6 {[%emt 0:00:16]} 19. e3 {[%emt 0:08:10]} Nf5 20. b4 Qxd3 {[%emt 0:10:25]} 21. bxc5 {[%emt 0:02:25]} bxc5 {[%emt 0:01:50]} 22. Ba5 {[%emt 0:04:00]} Qxd1 {[%emt 0:04:19]} 23. Rexd1 {[%emt 0:00:11]} Nb5 {[%emt 0:15:16]} 1/2-1/2

[Event "15th Avicenna Open Masters 2018"]
[Site "Avicenna"]
[Date "2018.08.20"]
[Round "5"]
[White "Gara, Ticia"]
[Black "Daneshvar, Bardiya"]
[Result "1/2-1/2"]
[ECO "A05"]
[WhiteElo "2358"]
[BlackElo "2290"]
[Annotator "NA"]
[PlyCount "48"]
[EventDate "2018.08.17"]
[EventType "swiss"]
[EventCountry "IRI"]
[SourceTitle "playchess.com"]
[Source "ChessBase"]
[SourceQuality "1"]
[TimeControl "5400+30"]

1. Nf3 {[%emt 0:00:00]} Nf6 {[%emt 0:00:00]} 2. c4 {[%emt 0:00:00]} c6 {[%emt 0:00:00]} 3. e3 d5 {[%emt 0:00:00]} 4. b3 {[%emt 0:04:56]} Bf5 {[%emt 0:01:42]} 5. Bb2 {[%emt 0:00:30]} e6 {[%emt 0:01:13]} 6. Be2 {[%emt 0:00:55]} h6 {[%emt 0:01:24]} 7. O-O {[%emt 0:01:37]} Nbd7 {[%emt 0:00:18]} 8. d4 {[%emt 0:02:35]} Bd6 {[%emt 0:02:42]} 9. Nbd2 {[%emt 0:06:26]} O-O {[%emt 0:02:24]} 10. Ne5 {[%emt 0:02:46]} Rc8 {[%emt 0:08:02]} 11. Ndf3 $11 {[%emt 0:01:34]} Ne4 {[%emt 0:02:27]} 12. Rc1 {[%emt 0:07:04]} f6 {[%emt 0:05:21]} 13. Nxd7 {[%emt 0:02:28]} Qxd7 {[%emt 0:02:48]} 14. Nd2 {[%emt 0:04:30]} a6 {[%emt 0:06:56]} 15. Nxe4 {[%emt 0:08:52]} Bxe4 {[%emt 0:00:07]} 16. Bd3 {[%emt 0:04:26]} Bxd3 {[%emt 0:00:41]} 17. Qxd3 {[%emt 0:00:04]} f5 {[%emt 0:00:34]} 18. f4 {[%emt 0:04:59]} b5 {[%emt 0:00:41]} 19. c5 {[%emt 0:02:22]} Be7 {[%emt 0:00:12]} 20. Rf3 {[%emt 0:02:43]} Bf6 {[%emt 0:01:23]} 21. Bc3 {[%emt 0:00:30]} Qc7 {[%emt 0:00:22]} 22. Qd2 {[%emt 0:02:21]} Bd8 {[%emt 0:00:27]} 23. a3 {[%emt 0:01:02]} a5 {[%emt 0:00:22]} 24. Bb2 {[%emt 0:00:49]} Ra8 {[%emt 0:00:16]} 1/2-1/2

[Event "15th Avicenna Open Masters 2018"]
[Site "Avicenna"]
[Date "2018.08.20"]
[Round "5"]
[White "Gholami Orimi, Mahdi"]
[Black "Czebe, Attila"]
[Result "0-1"]
[ECO "A04"]
[WhiteElo "2333"]
[BlackElo "2411"]
[Annotator "NA RC"]
[PlyCount "100"]
[EventDate "2018.08.17"]
[EventType "swiss"]
[EventCountry "IRI"]
[SourceTitle "playchess.com"]
[Source "ChessBase"]
[SourceQuality "1"]
[TimeControl "5400+30"]

1. Nf3 {[%emt 0:03:00]} b6 {[%emt 0:01:48]} 2. e3 {[%emt 0:02:29]} g6 {[%emt 0:00:23]} 3. d4 {[%emt 0:00:20]} Bb7 {[%emt 0:00:13]} 4. b3 {[%emt 0:00:02]} Bg7 {[%emt 0:00:05]} 5. Bb2 {[%emt 0:00:12]} d6 {[%emt 0:01:42]} 6. c4 {[%emt 0:00:06]} Nd7 {[%emt 0:00:05]} 7. Nc3 {[%emt 0:00:42]} e5 {[%emt 0:01:08]} 8. Be2 {[%emt 0:01:15]} e4 {[%emt 0:03:09]} 9. Nd2 {[%emt 0:00:11]} f5 {[%emt 0:00:05]} 10. Qc2 {[%emt 0:06:53]} Ngf6 {[%emt 0:02:15]} 11. f4 {[%emt 0:04:35]} Ng4 {[%emt 0:03:32]} 12. Nd1 {[%emt 0:06:49]} h5 {[%emt 0:00:38]} 13. h4 {[%emt 0:19:50]} Qe7 {[%emt 0:00:54]} 14. a4 $17 {[%emt 0:04:18]} a5 {[%emt 0:01:10]} 15. g3 {[%emt 0:00:56]} Nb8 {[%emt 0:00:28]} 16. Bxg4 {[%emt 0:09:26]} hxg4 {[%emt 0:00:40]} 17. d5 {[%emt 0:00:05]} Na6 {[%emt 0:00:42]} 18. Bxg7 {[%emt 0:00:03]} Qxg7 {[%emt 0:00:05]} 19. Qb2 {[%emt 0:00:39]} Qxb2 {[%emt 0:00:14]} 20. Nxb2 {[%emt 0:00:02]} c6 {[%emt 0:02:06]} 21. dxc6 {[%emt 0:00:15]} Bxc6 {[%emt 0:00:03]} 22. O-O-O {[%emt 0:00:06]} O-O-O {[%emt 0:00:14]} 23. Nb1 {[%emt 0:02:36]} Nc5 {[%emt 0:00:02]} 24. Kc2 {[%emt 0:00:50]} Nd3 {[%emt 0:00:01]} 25. Rh2 {[%emt 0:03:16]} d5 {[%emt 0:00:19]} 26. Na3 {[%emt 0:02:41]} d4 {[%emt 0:04:10]} 27. exd4 {[%emt 0:07:12]} Rxd4 {[%emt 0:00:19]} 28. Nxd3 {[%emt 0:06:33]} Rxd3 {[%emt 0:02:05]} 29. Rxd3 {[%emt 0:00:08]} exd3+ {[%emt 0:00:01]} 30. Kxd3 {[%emt 0:00:02]} g5 {[%emt 0:00:03]} 31. Ke3 {[%emt 0:18:48]} Re8+ {[%emt 0:00:14]} 32. Kf2 {[%emt 0:00:04]} gxf4 {[%emt 0:00:05]} 33. gxf4 {[%emt 0:00:12]} Rd8 {[%emt 0:00:37]} 34. h5 {[%emt 0:00:59]} Rd3 {[%emt 0:00:28]} 35. Ke1 {[%emt 0:01:19]} g3 {[%emt 0:00:47]} 36. Rh3 {[%emt 0:00:35]} g2 {[%emt 0:00:18]} 37. Rxd3 {[%emt 0:00:17]} g1=Q+ {[%emt 0:00:07]} 38. Kd2 {[%emt 0:00:16]} Be4 {[%emt 0:01:02]} 39. Rd6 {[%emt 0:00:43]} Qf2+ {[%emt 0:00:18]} 40. Kc3 {[%emt 0:00:05]} Qxf4 {[%emt 0:03:12]} 41. Nb5 {[%emt 0:00:05]} Qe5+ {[%emt 0:00:03]} 42. Rd4 {[%emt 0:00:20]} Qg3+ {[%emt 0:01:11]} 43. Kb2 {[%emt 0:00:12]} Qh2+ {[%emt 0:00:04]} 44. Ka3 {[%emt 0:00:07]} Qh1 {[%emt 0:00:11]} 45. Rd2 {[%emt 0:00:43]} Qxh5 {[%emt 0:00:35]} 46. Kb2 {[%emt 0:00:38]} Qh1 {[%emt 0:00:18]} 47. Re2 {[%emt 0:00:49]} Qd1 {[%emt 0:00:50]} 48. Rh2 {[%emt 0:00:26]} Qb1+ {[%emt 0:00:21]} 49. Ka3 {[%emt 0:00:06]} Qc1+ {[%emt 0:00:17]} 50. Rb2 {[%emt 0:00:12]} Kd7 {[%emt 0:00:22]} 0-1